bitfinex-derivatives/quotes_BNBF0:USTF0_20250424
["timestamp","ask_amount","ask_price","bid_price","bid_amount"]
[1745536161110,1.27273016,601.09,599.26,0.30619085]
[1745536161308,1.27273016,601.09,599.27,0.30619085]
[1745536161508,1.27273016,601.09,599.23,0.30619085]
[1745536161711,1.27273016,601.09,599.24,0.30619085]
[1745536161905,1.27273016,601.09,599.22,2.32827585]
[1745536162205,1.27273016,601.09,599.23,0.30619017]
[1745536163309,2.16540896,601.4,599.23,0.30619017]
[1745536163310,1.27273016,601.08,599.23,0.30619017]
[1745536163511,1.27273016,601.08,599.24,0.30618989]
[1745536163710,1.27273016,601.08,599.23,0.30618989]
[1745536164010,1.27273016,601.08,599.24,0.30618989]
[1745536164210,0.29007131,601.07,599.23,0.30618989]
[1745536164510,0.29007131,601.07,599.24,0.30618989]
[1745536164710,0.29007131,601.07,599.23,0.30618989]
[1745536165010,0.29007131,601.07,599.22,2.32829882]
[1745536165210,0.29007131,601.07,599.23,0.306156]
[1745536165912,1.27273016,601.08,599.23,0.306156]
[1745536167017,1.27273016,601.2,599.26,1.05922751]
[1745536167218,0.29005197,601.07,599.27,0.306156]
[1745536167511,1.27273016,601.2,599.27,0.306156]
[1745536168111,1.27273016,601.2,599.28,0.30618756]
[1745536168311,1.27273016,601.2,599.26,1.05922751]
[1745536168312,1.27273016,601.2,599.27,0.30618756]
[1745536168513,1.27273016,601.2,599.28,1.72918756]
[1745536168715,1.27273016,601.2,599.29,0.30618756]
[1745536169117,0.29004713,601.19,599.29,0.30618756]
[1745536169513,0.29004713,601.19,599.28,1.423]
[1745536169813,0.29004713,601.19,599.29,0.30619669]
[1745536170235,1.27273016,601.13,599.29,1.45619669]
[1745536170417,1.27273016,601.13,599.3,0.30619669]
[1745536173120,0.2900568,601.12,599.3,0.30619669]
[1745536173824,0.2900568,601.12,599.3,1.53719669]
[1745536174022,0.2900568,601.12,599.31,0.30619669]
[1745536174221,0.2900568,601.12,599.3,1.231]
[1745536174423,0.2900568,601.12,599.31,0.30620774]
[1745536174923,1.27273016,601.24,599.31,0.30620774]
[1745536176119,0.2900423,601.23,599.31,0.30620774]
[1745536176317,1.27273016,601.15,599.31,0.30620774]
[1745536177323,1.27273016,601.15,599.3,1.231]
[1745536177527,1.27273016,601.15,599.31,0.30622065]
[1745536178720,1.27273016,601.16,599.31,0.30622065]
[1745536179125,0.29006526,601.14,599.31,0.30622065]
[1745536180427,0.29006526,601.14,599.3,1.231]
[1745536180622,0.29006526,601.14,599.31,0.30622003]
[1745536180927,1.27273016,601.16,599.31,0.30622003]
[1745536181122,1.27273016,601.03,599.31,0.30622003]
[1745536182126,0.29007977,601.02,599.31,0.30622003]
[1745536183929,1.27273016,601.05,599.31,0.30622003]
[1745536185030,1.27273016,601.05,599.3,1.231]
[1745536185224,0.29007735,601.04,599.31,0.30621987]
[1745536186729,0.29007735,601.04,599.32,0.30622014]
[1745536186928,1.27273016,601.05,599.31,0.30622014]
[1745536187130,1.27273016,601.05,599.3,1.231]
[1745536187131,1.27273016,601.05,599.32,0.30622014]
[1745536187330,1.27273016,601.05,599.31,0.30622014]
[1745536187532,1.27273016,601.05,599.32,0.30622014]
[1745536187730,1.27273016,601.05,599.31,0.30622014]
[1745536187932,1.27273016,601.05,599.32,0.30622014]
[1745536188132,0.29007735,601.04,599.31,0.30622014]
[1745536188331,0.29007735,601.04,599.32,0.30622014]
[1745536188633,0.29007735,601.04,599.33,0.30622014]
[1745536188831,0.29007735,601.04,599.34,0.30622014]
[1745536189028,0.29007735,601.04,599.31,0.30622014]
[1745536189232,0.29007735,601.04,599.32,0.30622014]
[1745536189533,0.29007735,601.04,599.31,0.30622014]
[1745536189734,0.29007735,601.04,599.32,0.30622014]
[1745536189933,1.27273016,601.12,599.31,0.30622014]
[1745536190132,1.27273016,601.12,599.32,0.30622014]
[1745536190333,1.27273016,601.12,599.31,1.29022014]
[1745536190535,1.27273016,601.12,599.32,0.30622014]
[1745536191229,0.29006768,601.11,599.32,0.30622014]
[1745536192934,1.27273016,601.12,599.31,0.984]
[1745536193135,1.27273016,601.12,599.32,0.30622041]
[1745536194130,0.29006768,601.11,599.32,0.30622041]
[1745536194533,0.29006768,601.11,599.31,0.984]
[1745536194729,0.29006768,601.11,599.32,0.30622095]
[1745536195936,1.27273016,601.12,599.32,0.30622095]
[1745536197038,1.27273016,601.11,599.32,0.30622095]
[1745536197232,1.56279784,601.11,599.32,0.30622095]
[1745536197737,1.56279784,601.11,599.31,0.984]
[1745536197933,1.56279784,601.11,599.32,0.30622225]
[1745536198840,1.27273016,601.11,599.32,0.30622225]
[1745536199336,1.27273016,601.11,599.31,0.984]
[1745536199541,1.27273016,601.0,599.32,0.3062198]
[1745536200044,0.29008219,600.99,599.32,0.3062198]
[1745536201842,1.27273016,601.0,599.32,0.3062198]
[1745536203148,0.29008944,600.99,599.32,0.3062198]
[1745536203647,0.29008944,600.99,599.33,1.73624172]
[1745536203846,0.29008944,600.99,599.33,1.43]
[1745536204349,0.29008944,600.99,599.34,1.469]
[1745536204847,1.27273016,601.0,599.34,1.469]
[1745536206143,0.2900967,600.99,599.34,1.469]
[1745536207950,1.27273016,601.0,599.34,1.469]
[1745536208150,0.29009791,600.98,599.34,1.469]
[1745536211052,1.27273016,601.07,599.34,1.469]
[1745536211247,0.29008944,600.97,599.34,1.469]
[1745536211446,1.27273016,601.07,599.34,1.469]
[1745536212150,0.29008944,601.06,599.34,1.469]
[1745536213954,1.27273016,601.07,599.34,1.469]
[1745536214253,1.27273016,601.13,599.34,1.469]
[1745536215155,0.2900701,601.12,599.34,1.469]
[1745536216658,1.27273016,601.08,599.34,1.469]
[1745536218458,1.27273016,601.08,599.33,1.43]
[1745536219761,0.2900701,601.12,599.33,1.43]
[1745536219958,1.27273016,601.14,599.33,1.43]
[1745536221161,0.29006526,601.13,599.33,1.43]
[1745536221354,0.29006526,601.13,599.34,1.479]
[1745536221661,1.27273016,601.09,599.34,1.479]
[1745536223862,2.16540896,601.79,599.34,1.479]
[1745536223863,1.27273016,601.06,599.34,1.479]
[1745536225462,1.27273016,601.06,599.35,0.30623924]
[1745536225655,1.27273016,601.06,599.34,1.479]
[1745536226261,1.27273016,601.06,599.35,0.30623882]
[1745536226658,1.27273016,601.06,599.34,1.479]
[1745536226861,1.27273016,601.04,599.35,0.30623153]
[1745536229466,1.27273016,600.95,599.35,0.30623153]
[1745536229866,0.29007977,600.94,599.35,0.30623153]
[1745536230061,0.29007977,600.94,599.31,0.984]
[1745536230261,0.29007977,600.94,599.32,0.30619776]
[1745536230463,0.29007977,600.94,599.33,0.30619776]
[1745536230663,0.29007977,600.94,599.34,0.30619776]
[1745536230963,0.29007977,600.94,599.21,0.30619776]
[1745536231466,0.29007977,600.94,599.2,0.29006889]
[1745536231669,0.29007977,600.94,599.21,0.30619461]
[1745536232060,1.27273016,601.24,599.22,0.30619461]
[1745536232259,1.27273016,601.24,599.23,0.30619461]
[1745536232460,1.27273016,601.24,599.24,0.30619461]
[1745536232662,1.27273016,601.24,599.25,0.30619461]
[1745536232862,1.27273016,601.24,599.26,0.30619461]
[1745536233067,1.27273016,601.24,599.15,1.05922751]
[1745536233267,0.29005076,601.23,599.22,0.29005076]
[1745536233470,0.29005076,601.23,599.23,0.30617068]
[1745536233664,0.29005076,601.23,599.16,0.30617068]
[1745536233865,0.29005076,601.23,599.17,0.30617068]
[1745536234063,0.29005076,601.23,599.16,0.30617068]
[1745536234266,0.29005076,601.23,599.17,0.30617068]
[1745536234468,1.27273016,601.22,599.23,1.05922751]
[1745536234668,1.27273016,601.22,599.24,0.30616955]
[1745536235263,0.29004351,601.21,599.24,0.30616955]
[1745536237768,0.29004351,601.21,599.21,0.30616955]
[1745536238068,1.27273016,601.29,599.22,0.30616955]
[1745536238270,1.27273016,601.29,599.19,0.30616955]
[1745536238568,1.27273016,601.29,599.2,0.30616955]
[1745536238765,1.27273016,601.29,599.19,0.30616955]
[1745536238969,1.27273016,601.29,599.2,0.30616955]
[1745536239269,1.27273016,601.29,599.2,0.29004109]
[1745536239270,0.29004109,601.28,599.2,0.29004109]
[1745536239465,0.29004109,601.28,599.21,0.30618072]
[1745536239970,0.29004109,601.28,599.14,1.05922751]
[1745536240365,0.29004109,601.28,599.15,0.30635942]
[1745536240563,0.29004109,601.28,599.14,1.05922751]
[1745536241062,1.27273016,601.3,599.14,1.05922751]
[1745536242165,0.29013419,601.29,599.14,1.05922751]
[1745536242570,0.29013419,601.29,598.93,0.29013419]
[1745536242571,1.27273016,600.81,598.93,0.29013419]
[1745536242770,1.27273016,600.81,598.94,0.30636532]
[1745536244171,1.27273016,600.81,598.95,0.30636532]
[1745536244372,1.27273016,600.81,598.84,0.30636532]
[1745536244572,1.27273016,600.81,598.85,0.30636532]
[1745536244769,1.27273016,600.81,598.86,0.30636532]
[1745536245073,1.27273016,600.81,598.87,0.30636532]
[1745536245274,1.27273016,600.81,598.87,0.29023098]
[1745536245275,0.29023098,600.8,598.87,0.29023098]
[1745536245474,0.29023098,600.8,598.88,0.30636532]
[1745536246974,1.27273016,600.9,598.88,0.30636532]
[1745536247273,1.27273016,600.9,598.89,0.30636533]
[1745536247467,1.27273016,600.9,598.84,0.30636533]
[1745536247669,1.27273016,600.9,598.85,0.30636533]
[1745536247869,1.27273016,600.9,598.86,0.30636533]
[1745536248175,0.29022008,600.89,598.87,0.30636533]
[1745536250076,1.27273016,601.11,598.84,0.30636533]
[1745536250371,1.27273016,601.11,598.85,0.30636533]
[1745536250576,1.27273016,601.11,598.84,0.30636533]
[1745536251172,0.29020677,601.1,598.85,0.29020677]
[1745536251375,0.29020677,601.1,598.86,0.30636533]
[1745536251871,1.27273016,601.05,598.85,0.29020677]
[1745536252076,1.27273016,601.05,598.86,0.30641455]
[1745536253071,1.27273016,601.05,598.87,0.30641455]
[1745536253275,1.27273016,601.05,598.88,0.30641455]
[1745536253471,1.27273016,601.05,598.89,0.30641455]
[1745536253676,1.27273016,601.05,598.9,0.30641455]
[1745536253871,1.27273016,601.05,598.91,0.30641455]
[1745536254069,1.27273016,601.1,598.92,0.30641455]
[1745536254270,0.29021403,601.04,598.86,0.29021403]
[1745536254471,0.29021403,601.04,598.87,0.30641455]
[1745536255878,1.27273016,601.1,598.87,0.30641455]
[1745536256073,1.27273016,601.1,598.88,0.30641455]
[1745536256275,1.27273016,601.1,598.84,0.30641455]
[1745536256478,1.27273016,601.1,598.83,1.51821645]
[1745536256781,1.27273016,601.1,598.84,0.30643159]
[1745536257179,0.2902225,601.09,598.84,0.30643159]
[1745536258083,0.2902225,601.09,598.85,1.495]
[1745536258380,0.2902225,601.09,598.86,0.30643155]
[1745536258982,1.27273016,601.19,598.86,0.30643155]
[1745536260282,0.29020677,601.18,598.86,0.30643155]
[1745536261182,0.29020677,601.18,598.87,1.242]
[1745536261382,0.29020677,601.18,598.88,0.30643155]
[1745536261978,2.16540896,601.59,598.88,0.30643155]
[1745536261979,1.27273016,601.23,598.88,0.30643155]
[1745536262180,1.27273016,601.23,598.89,1.259]
[1745536262381,1.27273016,601.23,598.9,0.30643155]
[1745536263179,0.29019709,601.22,598.9,0.30643155]
[1745536263985,0.29019709,601.22,598.89,1.259]
[1745536264185,0.29019709,601.22,598.9,0.30643608]
[1745536264980,1.27273016,601.23,598.9,0.30643608]
[1745536266286,0.29019709,601.22,598.9,0.30643608]
[1745536266687,1.27273016,601.14,598.9,0.30643608]
[1745536268689,1.27273016,601.14,598.89,1.259]
[1745536268889,1.27273016,601.14,598.9,0.30643428]
[1745536269190,1.27273016,601.05,598.9,0.30643428]
[1745536270191,1.27273016,601.05,598.89,1.259]
[1745536271290,0.29018983,601.04,598.89,1.259]
[1745536272089,0.29018983,601.04,598.9,0.30636971]
[1745536273886,1.27273016,601.42,598.9,0.30636971]
[1745536274992,1.27273016,601.42,598.89,1.259]
[1745536275291,0.29014507,601.41,598.9,0.30637239]
[1745536276591,1.27273016,601.25,598.9,1.36937239]
[1745536276784,1.27273016,601.25,598.91,0.30637239]
[1745536278187,0.29016443,601.24,598.9,1.063]
[1745536278391,0.29016443,601.24,598.91,0.30636971]
[1745536279594,1.27273016,600.91,598.91,0.30636971]
[1745536281195,0.29020556,600.9,598.91,0.30636971]
[1745536281392,0.29020556,600.9,598.9,1.35320556]
[1745536281693,0.29020556,600.9,598.91,0.30637249]
[1745536282191,1.27273016,600.87,598.91,0.30637249]
[1745536283090,1.27273016,600.87,598.92,0.30636614]
[1745536283295,1.27273016,600.87,598.91,0.30636614]
[1745536284196,0.2902104,600.86,598.91,0.30636614]
[1745536284897,1.27273016,600.84,598.91,0.30636614]
[1745536286198,1.27273016,600.84,598.9,1.063]
[1745536286394,1.27273016,600.84,598.91,0.30636637]
[1745536286897,1.27273016,600.84,598.91,1.42336637]
[1745536287098,1.27273016,600.84,598.92,0.30636637]
[1745536287300,1.27273016,600.75,598.92,0.30636637]
[1745536289295,1.27273016,600.75,598.91,1.117]
[1745536289499,1.27273016,600.75,598.92,0.30636614]
[1745536290100,1.27273016,600.68,598.92,0.30636614]
[1745536290895,1.27273016,600.68,598.91,1.40722371]
[1745536291100,1.27273016,600.68,598.92,1.42434778]
[1745536291304,1.27273016,600.68,598.93,0.30634778]
[1745536292503,1.27273016,600.68,598.92,1.118]
[1745536292703,1.27273016,600.68,598.93,0.30634882]
[1745536292904,1.27273016,601.02,598.93,0.30634882]
[1745536293207,0.29021161,600.67,598.93,0.30634882]
[1745536293500,1.27273016,601.02,598.93,0.30634882]
[1745536295106,0.29017048,601.01,598.93,0.30634882]
[1745536295607,0.29017048,601.01,598.92,1.118]
[1745536295906,0.29017048,601.01,598.93,0.3063427]
[1745536298010,1.27273016,601.08,598.93,0.3063427]
[1745536298810,1.27273016,601.08,598.92,1.118]
[1745536299007,1.27273016,601.08,598.93,0.30634332]
[1745536299208,0.29016322,601.07,598.93,0.30634332]
[1745536299814,1.56289338,601.07,598.93,0.30634332]
[1745536300315,1.56289338,601.07,598.92,1.40816322]
[1745536300511,1.56289338,601.07,598.93,0.306343]
[1745536301014,1.27273016,601.07,598.93,0.306343]
[1745536301918,1.27273016,601.07,598.92,1.118]
[1745536302118,1.27273016,601.07,598.93,0.306343]
[1745536302319,0.29016443,601.06,598.94,0.306343]
[1745536302513,1.27273016,600.83,598.93,0.306343]
[1745536302718,1.27273016,600.83,598.94,0.306343]
[1745536302913,1.27273016,600.83,598.93,0.306343]
[1745536304116,1.27273016,600.83,598.92,0.306343]
[1745536305017,1.27273016,600.66,598.99,1.05922751]
[1745536305217,1.27273016,600.66,599.0,0.306343]
[1745536306822,1.27273016,600.66,599.01,0.30633465]
[1745536307123,1.27273016,600.66,599.02,0.30633465]
[1745536307324,1.27273016,600.63,599.02,1.36556216]
[1745536307624,1.27273016,600.63,599.03,0.30633465]
[1745536308217,0.29020556,600.62,599.03,0.30633465]
[1745536308424,0.29020556,600.62,599.02,0.30633465]
[1745536308622,0.29020556,600.62,599.03,0.30633465]
[1745536308918,0.29020556,600.62,599.04,0.30633465]
[1745536309118,0.29020556,600.62,599.02,0.30633465]
[1745536309321,0.29020556,600.62,599.03,0.30633465]
[1745536309523,0.29020556,600.62,599.02,0.30633465]
[1745536309822,0.29020556,600.62,599.03,0.30633465]
[1745536310118,0.29020556,600.62,599.01,1.503]
[1745536310518,1.26933307,600.6,599.06,1.0614777]
[1745536310821,1.26933307,600.6,599.07,0.30633257]
[1745536311222,0.29020435,600.59,599.07,0.30633257]
[1745536312224,0.29020435,600.59,599.06,1.0614777]
[1745536312425,0.29020435,600.59,599.07,0.30633373]
[1745536312925,1.26933307,600.6,599.07,0.30633373]
[1745536314226,0.29020435,600.59,599.07,0.30633373]
[1745536314622,0.29020435,600.59,599.06,1.0614777]
[1745536314826,0.29020435,600.59,599.07,0.30633417]
[1745536315726,0.29020435,600.59,599.06,0.30633417]
[1745536315923,0.29020435,600.59,599.07,0.30633417]
[1745536316123,1.26933307,600.64,599.06,0.30633417]
[1745536316323,1.26933307,600.64,599.07,0.30633257]
[1745536316522,1.26933307,600.64,599.06,0.30633257]
[1745536316722,1.26933307,600.64,599.07,0.30633257]
[1745536316922,1.26933307,600.64,599.06,0.30633257]
[1745536317125,1.26933307,600.64,599.07,0.30633257]
[1745536317325,0.29020072,600.63,599.08,0.30633257]
[1745536317529,0.29020072,600.63,599.09,0.30633257]
[1745536317830,0.29020072,600.63,599.01,1.503]
[1745536317831,1.26933307,600.58,599.1,0.30633257]
[1745536318025,1.26933307,600.58,599.09,0.30633257]
[1745536318230,1.26933307,600.58,599.1,0.30633257]
[1745536320230,0.29020435,600.57,599.1,0.30633257]
[1745536320726,0.29020435,600.57,599.09,0.30633257]
[1745536320930,0.29020435,600.57,599.1,0.30633257]
[1745536321128,0.29020435,600.57,599.09,0.30633257]
[1745536321334,0.29020435,600.57,599.1,0.30633257]
[1745536321527,0.29020435,600.57,599.11,0.30633257]
[1745536321931,1.26933307,600.66,599.11,0.30633257]
[1745536322832,1.26933307,600.66,599.1,1.327]
[1745536323234,0.29019467,600.65,599.1,1.327]
[1745536324932,1.26933307,601.22,599.1,1.327]
[1745536325433,1.26933307,601.28,599.1,1.327]
[1745536326227,0.29011967,601.27,599.1,1.327]
[1745536327636,0.29011967,601.27,599.11,1.354]
[1745536327933,1.26933307,601.28,599.11,1.354]
[1745536328736,1.26933307,601.29,599.11,1.354]
[1745536329235,0.29011726,601.28,599.11,1.354]
[1745536331035,1.26933307,601.26,599.11,1.354]
[1745536332237,0.29012088,601.25,599.11,1.354]
[1745536332937,0.29012088,601.25,599.12,0.30631027]
[1745536333238,1.26933307,601.21,599.12,0.30631027]
[1745536333740,1.26933307,601.21,599.11,1.354]
[1745536333941,1.26933307,601.21,599.12,0.30630999]
[1745536335137,1.26933307,600.73,599.12,0.30630999]
[1745536335340,1.26933307,600.73,599.11,1.354]
[1745536335640,1.26933307,600.73,599.12,0.30630606]
[1745536337240,0.29017531,600.72,599.12,0.30630606]
[1745536338341,0.29017531,600.72,599.13,1.453]
[1745536338536,0.29017531,600.72,599.14,0.30630606]
[1745536339941,1.26933307,600.78,599.14,0.30630606]
[1745536341241,0.29016685,600.77,599.14,0.30630606]
[1745536341536,1.26933307,600.76,599.14,0.30630606]
[1745536341741,1.26933307,600.76,599.15,0.30629817]
[1745536341942,1.26933307,600.76,599.14,0.30629817]
[1745536342141,1.26933307,600.76,599.15,0.30629817]
[1745536342440,1.26933307,600.76,599.16,0.30629817]
[1745536342643,1.26933307,600.76,599.14,0.30629817]
[1745536342941,1.26933307,600.76,599.15,0.30629817]
[1745536343141,1.26933307,600.76,599.14,0.30629817]
[1745536343441,1.26933307,600.85,599.15,0.30629559]
[1745536343640,1.26933307,600.85,599.14,0.30629559]
[1745536343838,1.26933307,600.85,599.15,0.30629559]
[1745536344042,1.26933307,600.85,599.14,0.30629559]
[1745536344242,0.29015354,600.84,599.15,0.30629559]
[1745536344437,0.29015354,600.84,599.16,0.30629559]
[1745536344642,0.29015354,600.84,599.14,0.30629559]
[1745536344838,0.29015354,600.84,599.13,1.453]
[1745536345540,0.29015354,600.84,599.14,0.30629774]
[1745536345840,1.26933307,600.82,599.14,1.62229774]
[1745536346046,1.26933307,600.82,599.15,0.30629774]
[1745536347245,0.29015596,600.81,599.15,0.30629774]
[1745536348749,1.26933307,600.78,599.15,0.30629774]
[1745536348943,1.26933307,600.78,599.11,0.30629774]
[1745536349142,1.26933307,600.78,599.12,0.30629774]
[1745536349345,1.26933307,600.78,599.13,0.30629774]
[1745536349545,1.26933307,600.78,599.11,0.30629774]
[1745536349850,1.26933307,600.78,599.1,1.327]
[1745536349851,1.26933307,600.78,599.12,0.30630685]
[1745536350046,1.26933307,600.78,599.13,0.30630685]
[1745536350251,0.29016564,600.77,599.11,0.30630685]
[1745536350446,0.29016564,600.77,599.12,0.30630685]
[1745536350645,0.29016564,600.77,599.11,0.30630685]
[1745536350951,1.26933307,600.74,599.12,0.30630685]
[1745536351152,1.26933307,600.74,599.13,0.30630685]
[1745536351349,1.26933307,600.74,599.11,0.30630685]
[1745536352749,1.26933307,600.73,599.11,0.30630685]
[1745536353252,0.29017168,600.72,599.11,0.30630685]
[1745536355058,1.26933307,600.73,599.11,0.30630685]
[1745536355659,2.15962918,601.3,599.11,0.30630685]
[1745536355660,1.26933307,600.74,599.11,0.30630685]
[1745536356256,0.29017048,600.73,599.11,0.30630685]
[1745536357963,1.26933307,600.74,599.11,0.30630685]
[1745536358464,1.26933307,600.75,599.11,0.30630685]
[1745536359269,0.29016927,600.74,599.11,0.30630685]
[1745536360865,1.55950234,600.74,599.11,0.30630685]
[1745536361067,1.26933307,600.74,599.11,0.30630685]
[1745536362269,0.29017048,600.73,599.11,0.30630685]
[1745536363974,1.26933307,600.89,599.11,0.30630685]
[1745536365367,0.29015233,600.88,599.11,0.30630685]
[1745536366075,1.26933307,600.82,599.11,0.30630685]
[1745536367272,0.2901608,600.81,599.11,0.30630685]
[1745536369675,0.2901608,600.81,599.08,0.30630685]
[1745536369870,0.2901608,600.81,599.09,0.30630685]
[1745536370071,1.26933307,600.82,599.1,0.30630685]
[1745536370275,1.26933307,600.82,599.07,0.30630685]
[1745536370775,1.26933307,600.82,599.06,1.0614777]
[1745536370977,1.26933307,600.82,599.07,0.30631066]
[1745536371377,1.26933307,600.72,599.1,1.0614777]
[1745536371571,1.26933307,600.72,599.11,0.30631066]
[1745536373278,1.26933307,600.72,599.1,1.0614777]
[1745536373482,1.26933307,600.72,598.76,1.0614777]
[1745536373483,1.26933307,600.74,599.09,1.0614777]
[1745536374179,1.26933307,600.74,599.1,0.30630606]
[1745536374486,0.29016927,600.73,599.1,0.30630606]
[1745536378977,1.26933307,600.79,599.1,0.30630606]
[1745536379176,1.26933307,600.79,599.11,0.30630606]
[1745536379381,1.26933307,600.79,599.09,0.30630606]
[1745536380284,0.29016443,600.78,599.09,0.30630606]
[1745536380885,0.29016443,600.78,599.08,1.0614777]
[1745536381084,0.29016443,600.78,599.09,0.30630297]
[1745536381982,1.26933307,600.79,599.09,0.30630297]
[1745536382186,0.29016443,600.77,599.08,1.0614777]
[1745536382386,0.29016443,600.77,599.09,0.30630269]
[1745536383189,1.26933307,600.72,599.12,1.0614777]
[1745536383389,1.26933307,600.72,599.13,0.30630269]
[1745536383787,1.26933307,600.72,599.12,1.0614777]
[1745536383988,1.26933307,600.72,599.13,0.30628499]
[1745536385482,1.26933307,600.72,599.12,1.0614777]
[1745536385788,1.26933307,600.99,599.13,0.30628471]
[1745536385988,1.26933307,600.99,599.05,0.30628471]
[1745536386183,1.26933307,600.99,599.06,0.30628471]
[1745536386385,0.2901354,600.98,599.1,0.2901354]
[1745536386585,0.2901354,600.98,599.11,0.30628471]
[1745536386785,0.2901354,600.98,599.12,1.337]
[1745536387091,0.2901354,600.98,599.13,0.30627877]
[1745536387990,1.26933307,600.99,599.13,0.30627877]
[1745536388293,0.29012572,600.97,599.13,0.30627877]
[1745536390291,0.29012572,600.97,599.12,1.337]
[1745536390492,0.29012572,600.97,599.13,0.30627323]
[1745536390994,1.26933307,601.01,599.13,0.30627323]
[1745536392294,0.29011605,601.0,599.13,0.30627323]
[1745536393996,1.26933307,601.01,599.13,0.30627323]
[1745536395192,0.29010879,601.0,599.13,0.30627323]
[1745536395397,0.29010879,601.0,599.14,1.24]
[1745536395595,0.29010879,601.0,599.15,0.30627323]
[1745536395898,1.26933307,600.82,599.15,0.30627323]
[1745536396898,1.26933307,600.82,599.14,1.24]
[1745536397099,1.26933307,600.82,599.15,0.30626225]
[1745536398198,0.29012935,600.81,599.15,0.30626225]
[1745536398594,0.29012935,600.81,599.16,0.3062617]
[1745536398798,0.29012935,600.81,599.15,0.3062617]
[1745536398998,0.29012935,600.81,599.16,0.3062617]
[1745536399198,0.29012935,600.81,599.15,0.3062617]
[1745536399500,1.55946242,600.81,599.16,0.3062617]
[1745536399999,1.26933307,600.81,599.16,0.3062617]
[1745536401298,0.29012935,600.8,599.16,0.3062617]
[1745536401699,0.29012935,600.8,599.16,1.451]
[1745536401899,0.29012935,600.8,599.17,0.30626077]
[1745536402997,1.26933307,600.82,599.17,0.30626077]
[1745536404298,1.26933307,600.7,599.21,1.0614777]
[1745536404499,1.26933307,600.7,599.22,0.30626077]
[1745536404902,1.26933307,600.7,599.21,1.0614777]
[1745536405103,1.26933307,600.7,599.22,0.30626077]
[1745536406597,1.26933307,600.7,599.21,1.0614777]
[1745536406797,1.26933307,600.69,599.22,0.30628135]
[1745536407203,0.2901487,600.68,599.22,0.30628135]
[1745536408103,0.2901487,600.68,599.21,1.0614777]
[1745536408303,1.26933307,600.66,599.22,0.30627793]
[1745536408503,1.26933307,600.66,599.19,0.30627793]
[1745536408803,1.26933307,600.66,599.18,1.0614777]
[1745536409902,1.26933307,600.66,599.18,2.4524777]
[1745536411300,0.2901487,600.68,599.18,1.391]
[1745536412004,1.26933307,601.23,599.18,1.391]
[1745536412300,0.29008461,600.67,599.18,1.391]
[1745536412503,1.26933307,601.23,599.18,1.391]
[1745536413904,1.26933307,601.36,599.18,1.391]
[1745536414403,0.29005922,601.35,599.18,1.391]
[1745536414999,1.26933307,601.36,599.18,1.391]
[1745536416205,0.29005922,601.35,599.18,1.391]
[1745536416803,0.29005922,601.35,599.18,2.65]
[1745536418002,1.26933307,601.38,599.18,2.65]
[1745536418306,0.2900568,601.34,599.18,2.65]
[1745536418806,0.2900568,601.34,599.18,3.615]
[1745536420307,0.2900568,601.34,599.19,0.30628285]
[1745536421007,1.26933307,601.39,599.19,0.30628285]
[1745536421604,1.26933307,600.95,599.19,0.30628285]
[1745536422207,0.29013298,600.94,599.19,0.30628285]
[1745536423909,1.26933307,600.89,599.19,0.30628285]
[1745536425311,0.29014023,600.88,599.19,0.30628285]
[1745536427012,1.26933307,600.9,599.19,0.30628285]
[1745536428213,0.29013902,600.89,599.19,0.30628285]
[1745536428514,1.26933307,600.72,599.19,0.30628285]
[1745536430918,1.26933307,600.76,599.19,0.30628285]
[1745536433520,1.26933307,600.93,599.19,0.30628285]
[1745536433719,1.26933307,600.93,599.2,1.181]
[1745536434321,0.29011363,600.92,599.2,1.181]
[1745536436123,1.26933307,600.93,599.2,1.181]
[1745536437224,0.29011363,600.92,599.2,1.181]
[1745536437723,0.29011363,600.92,599.21,1.009]
[1745536438525,0.29011363,600.92,599.21,1.31528285]
[1745536438725,0.29011363,600.92,599.22,0.30628285]
[1745536438926,0.29011363,600.92,599.22,1.72728285]
[1745536439226,1.26933307,600.93,599.23,0.30628285]
[1745536440222,0.29011121,600.92,599.23,0.30628285]
[1745536441128,0.29011121,600.92,599.22,1.421]
[1745536441326,0.29011121,600.92,599.24,1.105]
[1745536441520,0.29011121,600.92,599.25,0.30626435]
[1745536442029,1.26933307,600.93,599.25,0.30626435]
[1745536442329,0.29010879,600.91,599.25,0.30626435]
[1745536442528,0.29010879,600.91,599.24,1.105]
[1745536442529,1.26933307,600.76,599.24,1.105]
[1745536442727,1.26933307,600.76,599.25,0.30626391]
[1745536445324,0.29012935,600.75,599.25,0.30626391]
[1745536445529,1.26933307,600.7,599.25,0.30626391]
[1745536445727,1.26933307,600.7,599.26,0.30626404]
[1745536445925,1.26933307,600.7,599.25,0.30626404]
[1745536446129,1.26933307,600.7,599.26,0.30626404]
[1745536446425,1.26933307,600.7,599.27,0.30626404]
[1745536446624,1.26933307,600.7,599.28,0.30626404]
[1745536446828,1.26933307,600.7,599.25,0.30626404]